bitfinex/quotes_BTCUSD_20250129
["timestamp","ask_amount","ask_price","bid_price","bid_amount"]
[1738188612200,0.79346938,103570.0,103560.0,0.10944909]
[1738188612670,0.81146938,103570.0,103560.0,0.10944909]
[1738188612945,0.80246938,103570.0,103560.0,0.10944909]
[1738188613364,1.11146938,103570.0,103560.0,0.10944909]
[1738188613573,1.13094417,103570.0,103560.0,0.10944909]
[1738188613780,0.81094417,103570.0,103560.0,0.01288909]
[1738188614175,0.84011998,103570.0,103560.0,9e-08]
[1738188614993,0.80107547,103570.0,103560.0,9e-08]
[1738188617191,0.87858442,103560.0,103550.0,0.46628228]
[1738188617355,1.07318434,103560.0,103550.0,0.46628228]
[1738188618423,1.07366448,103560.0,103550.0,0.46628228]
[1738188618621,1.08266448,103560.0,103550.0,0.46628228]
[1738188619008,1.09166448,103560.0,103550.0,0.46628228]
[1738188622910,1.10142339,103560.0,103550.0,0.46628228]
[1738188623274,1.12142339,103560.0,103550.0,0.46628228]
[1738188623477,1.10142339,103560.0,103550.0,0.46628228]
[1738188624534,1.10142339,103560.0,103550.0,0.42279164]
[1738188625942,1.14009539,103560.0,103550.0,0.42279164]
[1738188631299,1.16009539,103560.0,103550.0,0.42279164]
[1738188631507,1.14009539,103560.0,103550.0,0.42279164]
[1738188634480,0.90909539,103560.0,103550.0,0.42279164]
[1738188634635,0.93944598,103560.0,103550.0,0.42279164]
[1738188635727,0.96944598,103560.0,103550.0,0.36237862]
[1738188636365,0.93909539,103560.0,103550.0,0.36237862]
[1738188636562,1.17009539,103560.0,103550.0,0.36237862]
[1738188636763,1.17929539,103560.0,103550.0,0.36237862]
[1738188636970,0.86929539,103560.0,103550.0,0.36237862]
[1738188638902,0.94789539,103560.0,103550.0,0.36237862]
[1738188643707,0.97824598,103560.0,103550.0,0.36237862]
[1738188644485,0.97824598,103560.0,103550.0,0.32375062]
[1738188645412,0.9785446,103560.0,103550.0,0.32375062]
[1738188645854,0.9785446,103560.0,103550.0,0.30443662]
[1738188646062,0.9785446,103560.0,103550.0,0.28512262]
[1738188646268,0.45,103550.0,103540.0,0.46920319]
[1738188646481,1.606771,103540.0,103530.0,0.13143372]
[1738188646684,0.617885,103530.0,103520.0,0.4696408]
[1738188646930,1.00293849,103530.0,103520.0,0.4696408]
[1738188648291,1.01193849,103530.0,103520.0,0.4696408]
[1738188648538,1.10929525,103530.0,103520.0,0.4696408]
[1738188648965,1.14136189,103530.0,103520.0,0.4696408]
[1738188649174,1.15036189,103530.0,103520.0,0.4696408]
[1738188650040,1.15952189,103530.0,103520.0,0.4696408]
[1738188651200,1.12745525,103530.0,103520.0,0.4696408]
[1738188651743,1.1784225,103530.0,103520.0,0.4696408]
[1738188651942,1.1784225,103530.0,103520.0,0.4503208]
[1738188652188,1.1784225,103530.0,103520.0,0.34893238]
[1738188652784,1.18823309,103530.0,103520.0,0.34893238]
[1738188655012,1.15616645,103530.0,103520.0,0.34893238]
[1738188656711,1.12400645,103530.0,103520.0,0.34893238]
[1738188656911,0.47127898,103530.0,103520.0,0.34893238]
[1738188657024,0.45237837,103530.0,103520.0,0.34893238]
[1738188657230,0.72774908,103530.0,103520.0,0.34893238]
[1738188657434,0.58237837,103530.0,103520.0,0.34893238]
[1738188657631,0.67973513,103530.0,103520.0,0.42643238]
[1738188658082,0.70273513,103530.0,103520.0,0.42643238]
[1738188658787,0.60537837,103530.0,103520.0,0.42643238]
[1738188659757,0.45537837,103530.0,103520.0,0.42643238]
[1738188660597,0.60537837,103530.0,103520.0,0.42643238]
[1738188662435,0.44719707,103530.0,103520.0,0.57133138]
[1738188662671,0.29719707,103530.0,103520.0,0.61913138]
[1738188662885,0.38738136,103530.0,103520.0,0.61913138]
[1738188663138,0.66275207,103530.0,103520.0,0.47423238]
[1738188663364,0.81112278,103530.0,103520.0,0.47423238]
[1738188663731,0.80212278,103530.0,103520.0,0.47423238]
[1738188663977,0.68375207,103530.0,103520.0,0.34893238]
[1738188664222,0.80012278,103530.0,103520.0,0.34893238]
[1738188664478,0.66775207,103530.0,103520.0,0.34893238]
[1738188664712,0.66775207,103530.0,103520.0,0.42933238]
[1738188665388,0.67675207,103530.0,103520.0,0.42933238]
[1738188665515,0.66775207,103530.0,103520.0,0.42933238]
[1738188665875,0.67675207,103530.0,103520.0,0.42933238]
[1738188666090,0.68575207,103530.0,103520.0,0.42933238]
[1738188667525,1.11112278,103530.0,103520.0,0.42933238]
[1738188667748,1.11112278,103530.0,103520.0,0.34893238]
[1738188668142,0.98575207,103530.0,103520.0,0.34893238]
[1738188670282,0.9860509,103530.0,103520.0,0.34893238]
[1738188670927,1.11142161,103530.0,103520.0,0.34893238]
[1738188671297,0.9860509,103530.0,103520.0,0.34893238]
[1738188673387,0.9860509,103530.0,103520.0,0.47263238]
[1738188676178,0.4474959,103530.0,103520.0,0.47263238]
[1738188677333,0.44741067,103530.0,103520.0,0.47263238]
[1738188677734,0.47741067,103530.0,103520.0,0.47263238]
[1738188679966,0.47741067,103530.0,103520.0,0.61753138]
[1738188680438,0.47741067,103530.0,103520.0,0.47263238]
[1738188680619,0.57476743,103530.0,103520.0,0.47263238]
[1738188680837,0.70013814,103530.0,103520.0,0.47263238]
[1738188680972,0.72313814,103530.0,103520.0,0.47263238]
[1738188682615,0.47741067,103530.0,103520.0,0.61753138]
[1738188686429,0.47741067,103530.0,103520.0,0.47263238]
[1738188688584,0.62578138,103530.0,103520.0,0.34893238]
[1738188688932,0.50041067,103530.0,103520.0,0.34893238]
[1738188689166,0.47741067,103530.0,103520.0,0.47013238]
[1738188689740,0.50514096,103530.0,103520.0,0.47013238]
[1738188691156,0.44034176,103530.0,103520.0,0.61503138]
[1738188692325,0.29554199,103530.0,103520.0,0.61503138]
[1738188693119,0.44042699,103530.0,103520.0,0.61503138]
[1738188693563,0.29554199,103530.0,103520.0,0.61503138]
[1738188694882,0.28654199,103530.0,103520.0,0.61503138]
[1738188695320,0.29554199,103530.0,103520.0,0.61503138]
[1738188695773,0.28654199,103530.0,103520.0,0.61503138]
[1738188696210,0.29354199,103530.0,103520.0,0.61503138]
[1738188697697,0.14354199,103530.0,103520.0,0.74040209]
[1738188698194,0.14354199,103530.0,103520.0,0.61503138]
[1738188698656,0.14354199,103530.0,103520.0,0.74040209]
[1738188698897,0.14354199,103530.0,103520.0,0.61503138]
[1738188699117,0.04629883,103530.0,103520.0,0.61503138]
[1738188699364,0.04629883,103530.0,103520.0,0.74040209]
[1738188700119,0.00077876,103560.0,103530.0,0.14968282]
[1738188700433,0.00077876,103560.0,103550.0,0.27022771]
[1738188700664,0.00077876,103560.0,103550.0,0.39912771]
[1738188700912,0.00077876,103560.0,103550.0,0.1289]
[1738188700913,0.24286492,103560.0,103550.0,0.1289]
[1738188701164,0.09802192,103560.0,103550.0,0.273757]
[1738188702382,0.11402192,103560.0,103550.0,0.274757]
[1738188704167,0.11848854,103560.0,103550.0,0.274757]
[1738188704723,0.11402192,103560.0,103550.0,0.274757]
[1738188704953,0.11849603,103560.0,103550.0,0.274757]
[1738188706165,0.02125287,103560.0,103550.0,0.28434733]
[1738188706386,0.02125287,103560.0,103550.0,0.40971804]
[1738188707017,0.01677876,103560.0,103550.0,0.40971804]
[1738188707230,0.00777876,103560.0,103550.0,0.40871804]
[1738188707625,0.01677876,103560.0,103550.0,0.40971804]
[1738188707839,0.01677876,103560.0,103550.0,0.28434733]
[1738188708070,0.00977876,103560.0,103550.0,0.28434733]
[1738188708246,0.01477876,103560.0,103550.0,1.90971804]
[1738188708480,0.01477876,103560.0,103550.0,2.0069612]
[1738188708906,0.01477876,103560.0,103550.0,1.78434733]
[1738188709123,0.01477876,103560.0,103550.0,1.90971804]
[1738188709334,0.01477876,103560.0,103550.0,2.02610108]
[1738188709543,0.01477876,103560.0,103550.0,2.17610108]
[1738188709721,0.01477876,103560.0,103550.0,2.20910108]
[1738188710146,0.00029904,103570.0,103550.0,2.22910108]
[1738188710360,0.00029883,103600.0,103590.0,0.270401]
[1738188711664,0.00029883,103600.0,103590.0,0.27054471]
[1738188712089,0.00529883,103600.0,103590.0,0.27054471]
[1738188712776,0.01229883,103600.0,103590.0,0.27154471]
[1738188713193,0.00529883,103600.0,103590.0,0.27054471]
[1738188713390,0.00629883,103600.0,103590.0,0.27054471]
[1738188714002,0.00129883,103600.0,103590.0,0.27054471]
[1738188714249,0.00129883,103600.0,103590.0,0.27154471]
[1738188714858,0.00129883,103600.0,103590.0,0.29105232]
[1738188717180,0.00129883,103600.0,103590.0,0.30065166]
[1738188718181,0.03129883,103600.0,103590.0,0.30065166]
[1738188719235,0.03129883,103600.0,103590.0,0.28114405]
[1738188719436,0.12854199,103600.0,103590.0,0.14594471]
[1738188719552,0.12854199,103600.0,103590.0,0.1469099]
[1738188719754,0.12854199,103600.0,103590.0,0.1369099]
[1738188720217,0.12854199,103600.0,103570.0,0.47864556]
[1738188720218,0.144808,103590.0,103570.0,0.47864556]
[1738188720423,0.43512116,103590.0,103570.0,0.67189362]
[1738188720626,0.09724316,103580.0,103570.0,0.23659462]
[1738188721457,0.09724316,103580.0,103570.0,0.15439462]
[1738188721872,0.09724316,103580.0,103570.0,0.15535996]
[1738188722480,0.09824316,103580.0,103570.0,0.15535996]
[1738188723516,0.09824316,103580.0,103570.0,0.15635996]
[1738188723860,0.09824316,103580.0,103570.0,0.15539462]
[1738188724067,0.24305816,103580.0,103570.0,0.15539462]
[1738188724345,0.09824316,103580.0,103570.0,0.15539462]
[1738188724520,0.09824316,103580.0,103570.0,0.15636]
[1738188726303,0.24305816,103580.0,103570.0,0.01057262]
[1738188726495,0.24305816,103580.0,103570.0,0.00114306]
[1738188726704,0.36842887,103580.0,103570.0,0.00114306]
[1738188726882,0.46335846,103580.0,103570.0,0.00114306]
[1738188727095,0.69565846,103580.0,103570.0,0.00114306]
[1738188727302,0.76765846,103580.0,103570.0,0.00014306]
[1738188727722,0.91802917,103580.0,103570.0,0.00014306]
[1738188727943,0.79265846,103580.0,103570.0,0.00028526]
[1738188728156,0.78765846,103580.0,103570.0,0.00028526]
[1738188728359,0.79765336,103580.0,103570.0,0.00028526]
[1738188728584,1.24206407,103580.0,103570.0,0.00028526]
[1738188728794,1.27815447,103580.0,103570.0,0.00028526]
[1738188729010,0.96815447,103580.0,103570.0,0.00028526]
[1738188729228,0.97715447,103580.0,103570.0,0.00128526]
[1738188729449,0.94815447,103580.0,103570.0,0.00028526]
[1738188729652,0.144871,103540.0,103530.0,0.00096566]
[1738188729854,0.36762892,103540.0,103530.0,0.00096566]
[1738188730061,0.42828771,103540.0,103530.0,0.00096566]
[1738188730270,0.144885,103530.0,103520.0,0.34893238]
[1738188730474,0.09724316,103530.0,103520.0,0.49383138]
[1738188731304,0.24212816,103530.0,103520.0,0.49383138]
[1738188732305,0.09724316,103530.0,103520.0,0.50339734]
[1738188733177,0.09724316,103530.0,103520.0,0.50439734]
[1738188733966,0.09724316,103530.0,103520.0,0.50339734]
[1738188734289,0.10124316,103530.0,103520.0,0.50339734]
[1738188734494,0.24612816,103530.0,103520.0,0.49383138]
[1738188734698,0.46178606,103530.0,103520.0,0.34893238]
[1738188734878,0.33641535,103530.0,103520.0,0.34893238]
[1738188735238,0.38049887,103530.0,103520.0,0.34993238]
[1738188735422,0.25512816,103530.0,103520.0,0.34993238]
[1738188736837,0.11024316,103530.0,103520.0,0.34993238]
[1738188737248,0.25512816,103530.0,103520.0,0.34993238]
[1738188737834,0.11024316,103530.0,103520.0,0.49483138]
[1738188738258,0.013,103530.0,103520.0,2.19550209]
[1738188738375,0.013,103530.0,103520.0,2.24500209]
[1738188738998,0.013,103530.0,103520.0,0.74500209]
[1738188739686,0.013,103530.0,103520.0,2.24500209]
[1738188740383,0.013,103530.0,103520.0,2.34224525]
[1738188741990,0.00014405,103540.0,103520.0,2.34224525]
[1738188741991,0.00014405,103540.0,103530.0,0.144885]
[1738188742204,0.00014405,103540.0,103530.0,0.76863507]
[1738188742409,0.00014405,103540.0,103530.0,0.76766958]
[1738188743240,0.00414405,103540.0,103530.0,0.80066958]
[1738188743443,0.00414405,103540.0,103530.0,2.30066958]
[1738188743854,0.00114405,103540.0,103530.0,2.30966958]
[1738188745562,0.00214405,103540.0,103530.0,2.31666958]
[1738188748047,0.00214405,103540.0,103530.0,2.32628279]
[1738188751023,0.00214405,103540.0,103530.0,0.82628279]
[1738188751481,0.00214405,103540.0,103530.0,2.32628279]
[1738188751641,0.00029862,103570.0,103560.0,0.144843]
[1738188751823,0.00029862,103570.0,103560.0,0.39654971]
[1738188752084,0.00029862,103570.0,103560.0,0.54558442]
[1738188752279,0.00029862,103570.0,103560.0,0.71942758]
[1738188752443,0.00029862,103570.0,103560.0,2.21942758]
[1738188752660,0.03029862,103570.0,103560.0,2.09405687]
[1738188752864,0.03429862,103570.0,103560.0,0.294843]
[1738188753083,0.03429862,103570.0,103560.0,0.42021371]
[1738188753551,0.03429862,103570.0,103560.0,0.42121371]
[1738188754196,0.03443836,103570.0,103560.0,0.42121371]
[1738188755249,0.03443836,103570.0,103560.0,0.54658442]
[1738188755415,0.03443836,103570.0,103560.0,0.72042758]
[1738188755790,0.03443836,103570.0,103560.0,0.74009269]
[1738188755991,0.03443836,103570.0,103560.0,0.61472198]
[1738188757555,0.03443836,103570.0,103560.0,2.11472198]
[1738188758322,0.03443836,103570.0,103560.0,2.24009269]
[1738188759123,0.03443836,103570.0,103560.0,2.11472198]
[1738188759911,0.03443836,103570.0,103560.0,2.12431913]
[1738188762960,0.03443836,103570.0,103560.0,0.62431913]
[1738188763461,0.03443836,103570.0,103560.0,2.12431913]
[1738188766259,0.03443836,103570.0,103560.0,0.62431913]
[1738188766469,0.03443836,103570.0,103560.0,0.49894842]
[1738188766718,0.03443836,103570.0,103560.0,1.99894842]
[1738188767517,0.03443836,103570.0,103560.0,2.12431913]
[1738188768373,0.03443836,103570.0,103560.0,1.99894842]
[1738188768755,0.00443836,103570.0,103560.0,1.99894842]
[1738188769920,0.00443836,103570.0,103560.0,0.49894842]
[1738188770353,0.00443836,103570.0,103560.0,1.99894842]
[1738188772011,0.00443836,103570.0,103560.0,0.65731913]
[1738188772217,0.11515096,103600.0,103590.0,0.144801]
[1738188773927,0.14515096,103600.0,103590.0,0.145801]
[1738188774442,0.15115096,103600.0,103590.0,0.146801]
[1738188776552,0.15144958,103600.0,103590.0,0.146801]
[1738188777547,0.15144958,103600.0,103590.0,0.14776614]
[1738188777923,0.03629862,103600.0,103590.0,0.14776614]
[1738188778482,0.03029862,103600.0,103590.0,0.14676614]
[1738188778686,0.03629862,103600.0,103590.0,0.14776614]
[1738188778881,0.03629862,103600.0,103590.0,0.15761806]
[1738188779698,0.03629862,103600.0,103590.0,0.15661806]
[1738188780063,0.03629862,103600.0,103590.0,0.15761806]
[1738188780397,0.03029862,103600.0,103590.0,0.15661806]
[1738188780602,0.03529862,103600.0,103590.0,0.15661806]
[1738188783397,0.03029862,103600.0,103590.0,0.15561806]
[1738188783602,0.10809862,103600.0,103590.0,0.15561806]
[1738188784187,0.03029862,103600.0,103590.0,0.15561806]
[1738188788273,0.03029862,103600.0,103590.0,0.15576026]
[1738188788951,0.00029862,103600.0,103590.0,0.43113097]
[1738188789161,0.00029862,103600.0,103590.0,0.55751515]
[1738188789276,0.00029862,103600.0,103590.0,0.80938586]
[1738188789483,0.00029862,103600.0,103590.0,2.18401515]
[1738188794276,0.00029862,103600.0,103590.0,0.68401515]
[1738188794506,0.00029862,103600.0,103590.0,0.65390899]
[1738188795213,0.00029862,103600.0,103590.0,0.68397298]
[1738188795574,0.00029862,103600.0,103590.0,0.65390899]
[1738188797340,0.00029862,103600.0,103590.0,0.40203828]
[1738188797553,0.00029862,103600.0,103590.0,0.30479512]
[1738188797688,0.00029862,103600.0,103590.0,0.43016583]
[1738188801367,0.04549862,103600.0,103590.0,0.15479512]
[1738188801492,0.00029862,103600.0,103590.0,0.28113092]
[1738188801699,0.00029862,103600.0,103590.0,0.28016583]
[1738188802803,0.00029862,103600.0,103590.0,0.37740899]
[1738188803351,0.00029862,103600.0,103590.0,1.87740899]
[1738188806804,0.04699862,103600.0,103590.0,0.15479512]
[1738188807004,0.04699862,103600.0,103590.0,0.15576023]
[1738188808418,0.12669862,103600.0,103590.0,0.15576023]
[1738188809489,0.15669862,103600.0,103590.0,0.15576023]
[1738188809691,0.15669862,103600.0,103590.0,0.15479512]
[1738188810158,0.15669862,103600.0,103590.0,0.15576025]
[1738188811623,0.15669862,103600.0,103590.0,0.15479512]
[1738188811980,0.15669862,103600.0,103590.0,0.15576025]
[1738188814056,0.15669862,103600.0,103590.0,0.28113096]
[1738188814255,0.15669862,103600.0,103590.0,0.28016583]
[1738188814897,0.15673862,103600.0,103590.0,0.15479512]
[1738188815183,0.15673862,103600.0,103590.0,0.13101025]
[1738188817881,0.15673862,103600.0,103590.0,0.13004512]
[1738188819322,0.15673862,103600.0,103590.0,0.13101025]
[1738188823310,0.15673862,103600.0,103590.0,0.25638096]
[1738188823554,0.15673862,103600.0,103590.0,0.25541583]
[1738188825268,0.07703862,103600.0,103590.0,0.25541583]
[1738188825470,0.03033862,103600.0,103590.0,0.38078654]
[1738188825682,0.03033862,103600.0,103590.0,0.6076297]
[1738188825883,0.03033862,103600.0,103590.0,0.7576297]
[1738188826223,0.03033862,103600.0,103590.0,0.78772403]
[1738188826462,0.00033862,103600.0,103590.0,0.82072403]
[1738188826905,0.00033862,103600.0,103590.0,2.32072403]
[1738188827476,0.00029883,103610.0,103600.0,0.376287]
[1738188827707,0.0004435,103610.0,103600.0,0.6289952]
[1738188830584,0.0004435,103610.0,103600.0,0.59890087]
[1738188831091,0.0004435,103610.0,103600.0,0.62897878]
[1738188831365,0.0004435,103610.0,103600.0,0.60390087]
[1738188831628,0.0004435,103610.0,103600.0,0.42515771]
[1738188832600,0.0004435,103610.0,103600.0,0.60730087]
[1738188832809,0.0004435,103610.0,103600.0,0.64030087]
[1738188833270,0.0004435,103610.0,103600.0,2.14030087]
[1738188833504,0.0004435,103610.0,103600.0,2.17037102]
[1738188835414,0.0004435,103610.0,103600.0,0.67037102]
[1738188835808,0.0004435,103610.0,103600.0,2.17037102]
[1738188836379,0.0004435,103610.0,103600.0,0.67037102]
[1738188836587,0.00029883,103640.0,103630.0,0.144745]
[1738188836793,0.00029883,103640.0,103630.0,0.27108035]
[1738188836995,0.00029883,103640.0,103630.0,0.27011571]
[1738188837424,0.03029883,103640.0,103630.0,0.27011571]
[1738188838124,0.03129883,103640.0,103630.0,0.27011571]
[1738188838441,0.03029883,103640.0,103630.0,0.27011571]
[1738188838669,0.03029883,103640.0,103630.0,0.28311571]
[1738188841457,0.03029883,103640.0,103630.0,0.30201116]
[1738188841665,0.03029883,103640.0,103630.0,0.31157485]
[1738188842074,0.03029883,103640.0,103630.0,0.18620414]
[1738188842277,0.25814199,103640.0,103630.0,0.16730869]
[1738188842456,0.40287299,103640.0,103630.0,0.02352846]
[1738188842670,0.40287299,103640.0,103630.0,0.16827352]
[1738188843690,0.40287299,103640.0,103630.0,0.16427352]
[1738188843823,0.40387299,103640.0,103630.0,0.16427352]
[1738188844244,0.40387299,103640.0,103630.0,0.15527352]
[1738188845584,0.25914199,103640.0,103630.0,0.15527352]
[1738188845791,0.40387299,103640.0,103630.0,0.15527352]
[1738188848440,0.25914199,103640.0,103630.0,0.15527352]
[1738188848648,0.40387299,103640.0,103630.0,0.15527352]
[1738188850249,0.25914199,103640.0,103630.0,0.15527352]
[1738188854621,0.40387299,103640.0,103630.0,0.15527352]
[1738188854832,0.25914199,103640.0,103630.0,0.15430869]
[1738188855030,0.25914199,103640.0,103630.0,0.15527353]
[1738188855459,0.25914199,103640.0,103630.0,0.00956369]
[1738188855662,0.1243,103630.0,103620.0,0.192996]
[1738188856403,0.1243,103630.0,103620.0,0.19396088]
[1738188858083,0.1263,103630.0,103620.0,0.19396088]
[1738188858287,0.1263,103630.0,103620.0,0.19496088]
[1738188860284,0.1263,103630.0,103620.0,0.20466176]
[1738188860510,0.1263,103630.0,103620.0,0.20369688]
[1738188869703,0.12659862,103630.0,103620.0,0.20369688]
[1738188871513,0.56700084,103630.0,103620.0,0.01070088]
[1738188871737,0.1463,103590.0,103580.0,0.08618737]
[1738188871944,0.58641067,103590.0,103580.0,0.08618737]
[1738188872159,0.58545286,103590.0,103580.0,0.08633204]
[1738188872374,0.61637241,103590.0,103580.0,0.08633204]
[1738188872579,0.68371487,103590.0,103580.0,0.08633204]
[1738188872806,0.51534416,103590.0,103580.0,0.08633204]
[1738188873015,0.14314316,103590.0,103580.0,0.08633204]
[1738188873425,0.14314316,103590.0,103580.0,0.08729734]
[1738188873630,0.14314316,103590.0,103580.0,0.00210997]
[1738188873837,0.14514316,103590.0,103580.0,0.00310997]
[1738188874215,0.14314316,103590.0,103580.0,0.00210997]
[1738188874956,0.14314316,103590.0,103580.0,0.00110997]
[1738188875156,0.23069675,103590.0,103580.0,0.00110997]
[1738188875624,0.24369675,103590.0,103580.0,0.00210997]
[1738188876398,0.15614316,103590.0,103580.0,0.00210997]
[1738188878361,0.11024316,103590.0,103580.0,0.00210997]
[1738188880623,0.11024316,103590.0,103580.0,0.01191337]
[1738188882193,0.11024316,103590.0,103580.0,0.01205557]
[1738188882395,0.11054178,103590.0,103580.0,0.01205557]
[1738188882960,0.19483513,103590.0,103580.0,0.01205557]
[1738188883196,0.11054178,103590.0,103580.0,0.01205557]
[1738188884152,0.14054178,103590.0,103580.0,0.01205557]
[1738188886326,0.28534278,103590.0,103580.0,0.01205557]
[1738188887601,0.41071349,103590.0,103580.0,0.00128687]
[1738188891164,0.14054178,103590.0,103580.0,0.00128687]
[1738188891393,0.04329862,103590.0,103580.0,0.14610187]
[1738188891547,0.04329862,103590.0,103580.0,0.14706714]
[1738188894353,0.04329862,103590.0,103580.0,0.00225214]
[1738188897130,0.04329862,103590.0,103580.0,0.14706714]
[1738188899269,0.04298497,103590.0,103580.0,0.14706714]
[1738188901704,0.04298497,103590.0,103580.0,0.00225214]
[1738188901915,0.04298497,103590.0,103580.0,0.14706714]
[1738188902720,0.04298497,103590.0,103580.0,0.00225214]
[1738188903021,0.04298497,103590.0,103580.0,0.14706714]
[1738188904960,0.04298497,103590.0,103580.0,0.00225214]
[1738188905112,0.04298497,103590.0,103580.0,0.14706714]
[1738188905297,0.04298497,103590.0,103580.0,0.00225214]
[1738188905749,0.41392913,103590.0,103580.0,0.00128687]
[1738188905899,0.53929984,103590.0,103580.0,0.00128687]
[1738188906106,0.41392913,103590.0,103580.0,0.00128687]
[1738188907906,0.80007613,103590.0,103570.0,0.01035279]
[1738188908155,0.80007613,103590.0,103570.0,0.15518179]
[1738188908350,0.80007613,103590.0,103570.0,0.01035279]
[1738188908550,0.09724316,103580.0,103570.0,0.01035279]
[1738188909234,0.09724316,103580.0,103570.0,0.01135279]
[1738188910438,0.09724316,103580.0,103570.0,0.01035279]
[1738188910687,0.09724316,103580.0,103570.0,0.01135279]
[1738188910857,0.10624316,103580.0,103570.0,0.01135279]
[1738188911026,0.13475453,103580.0,103570.0,0.01135279]
[1738188911229,0.13875453,103580.0,103570.0,0.01135279]
[1738188911435,0.11024316,103580.0,103570.0,0.01135279]
[1738188915602,0.11024316,103580.0,103570.0,0.00196532]
[1738188916007,0.38138668,103580.0,103570.0,0.001]
[1738188916210,0.38042887,103580.0,103570.0,0.001]
[1738188916414,0.53042887,103580.0,103570.0,0.001]
[1738188916732,0.62778563,103580.0,103570.0,0.001]
[1738188916931,0.55447063,103580.0,103560.0,0.00096547]
[1738188917146,0.144829,103570.0,103560.0,0.00096547]
[1738188917348,0.09724316,103570.0,103560.0,0.00096547]
[1738188917517,0.24207216,103570.0,103560.0,0.00096547]
[1738188917714,0.24207216,103570.0,103550.0,0.53873993]
[1738188917920,0.24207216,103570.0,103550.0,0.53887967]
[1738188918122,0.33099485,103570.0,103550.0,0.53887967]
[1738188918322,0.33599485,103570.0,103560.0,0.0009655]
[1738188918584,0.25607216,103570.0,103560.0,0.0019655]
[1738188918791,0.25107216,103570.0,103560.0,0.001]
[1738188919178,0.25607216,103570.0,103560.0,0.001]
[1738188919380,0.24707216,103570.0,103550.0,0.34573667]
[1738188919879,0.29287216,103570.0,103550.0,0.34573667]
[1738188920305,0.38522892,103570.0,103550.0,0.34573667]
[1738188920625,0.39422892,103570.0,103550.0,0.34573667]
[1738188921160,0.39922892,103570.0,103550.0,0.34573667]
[1738188921683,0.39422892,103570.0,103550.0,0.34573667]
[1738188921882,0.39922892,103570.0,103550.0,0.34573667]
[1738188922711,0.59233992,103570.0,103550.0,0.15259567]
[1738188922930,0.78545092,103570.0,103550.0,0.15259567]
[1738188923490,0.59233992,103570.0,103550.0,0.34573867]
[1738188924115,0.59233992,103570.0,103550.0,0.15259567]
[1738188924614,0.31718616,103560.0,103550.0,0.00774067]
[1738188924820,0.41454292,103560.0,103550.0,0.00013974]
[1738188925776,0.42354292,103560.0,103550.0,0.00013974]
[1738188926166,0.45354292,103560.0,103550.0,0.00013974]
[1738188926733,0.45754292,103560.0,103550.0,0.00013974]
[1738188927166,0.45354292,103560.0,103550.0,0.00013974]
[1738188927482,0.44454292,103560.0,103550.0,0.00013974]
[1738188927842,0.45054292,103560.0,103550.0,0.00113974]
[1738188928544,0.45354292,103560.0,103550.0,0.00013974]
[1738188929089,0.45354292,103560.0,103550.0,0.00028194]
[1738188929511,0.13624316,103560.0,103550.0,0.14610453]
[1738188930318,0.14024316,103560.0,103550.0,0.14610453]
[1738188931511,0.14024316,103560.0,103550.0,0.00124753]
[1738188931735,0.28508616,103560.0,103550.0,0.00124753]
[1738188932187,0.14024316,103560.0,103550.0,0.00124753]
[1738188932394,0.23759992,103560.0,103550.0,0.00124753]
[1738188932599,0.23759992,103560.0,103550.0,0.14610453]
[1738188933882,0.23759992,103560.0,103550.0,0.00124753]
[1738188934406,0.14024316,103560.0,103550.0,0.00124753]
[1738188934611,0.28508616,103560.0,103550.0,0.00124753]
[1738188935379,0.14024316,103560.0,103550.0,0.00028194]
[1738188935588,0.64121468,103560.0,103550.0,0.00028194]
[1738188935793,0.64025687,103560.0,103550.0,0.00028194]
[1738188936049,0.73761363,103560.0,103550.0,0.00028194]
[1738188936250,0.78441363,103560.0,103550.0,0.00028194]
[1738188936870,0.96370389,103560.0,103550.0,0.00028194]
[1738188937402,0.98370389,103560.0,103550.0,0.00028194]
[1738188937808,0.97070389,103560.0,103550.0,0.00028194]
[1738188937981,0.97970389,103560.0,103550.0,0.00028194]
[1738188938187,0.97970389,103560.0,103550.0,0.00128194]
[1738188938188,0.98570389,103560.0,103550.0,0.00128194]
[1738188938394,0.98570389,103560.0,103550.0,0.00096]
[1738188938575,0.99470389,103560.0,103550.0,0.00096]
[1738188938777,0.317857,103550.0,103540.0,0.0001422]
[1738188938957,0.82700718,103550.0,103540.0,0.00062234]
[1738188939155,0.84886329,103550.0,103540.0,3.4e-07]
[1738188939379,0.467371,103540.0,103530.0,0.0001423]
[1738188939581,0.81535558,103540.0,103530.0,0.0001423]
[1738188939792,0.72090442,103540.0,103530.0,0.0001423]
[1738188939959,0.78793994,103540.0,103530.0,0.0001423]
[1738188940774,0.79593994,103540.0,103530.0,0.0001423]
[1738188941315,0.80493994,103540.0,103530.0,0.0001423]
[1738188945220,0.89004244,103540.0,103530.0,0.0001423]
[1738188945740,0.90898258,103540.0,103530.0,0.0001423]
[1738188947421,0.915007,103540.0,103530.0,0.0001423]
[1738188948221,1.08930273,103540.0,103530.0,0.0001423]
[1738188948653,0.96393202,103540.0,103530.0,0.0001423]
[1738188949055,0.90115636,103540.0,103530.0,0.0001423]
[1738188953365,0.90145498,103540.0,103530.0,0.0001423]
[1738188957022,0.45464413,103540.0,103530.0,0.0001423]
[1738188957571,0.73001484,103540.0,103530.0,0.0001423]
[1738188958514,0.60464413,103540.0,103530.0,0.0001423]
[1738188959761,0.38158419,103540.0,103530.0,0.0001423]
[1738188960187,0.13047003,103540.0,103530.0,0.27099316]
[1738188960390,0.05436753,103540.0,103530.0,0.2700273]
[1738188960590,0.00829862,103540.0,103530.0,0.2700273]
[1738188960988,0.00929862,103540.0,103530.0,0.2700273]
[1738188961210,0.03771419,103540.0,103530.0,0.2710273]
[1738188961424,0.08384456,103540.0,103530.0,0.2710273]
[1738188961611,0.08384456,103540.0,103530.0,0.2700273]
[1738188961971,0.08784456,103540.0,103530.0,0.2700273]
[1738188962934,0.05942899,103540.0,103530.0,0.27618962]
[1738188964241,0.01329862,103540.0,103530.0,0.26795362]
[1738188964984,0.03107034,103540.0,103530.0,0.26795362]
[1738188969430,0.01329862,103540.0,103530.0,0.26795362]
[1738188975068,0.01329862,103540.0,103530.0,0.51869504]
[1738188975234,0.01329862,103540.0,103530.0,0.39332433]
[1738188975664,0.01329862,103540.0,103530.0,1.89332433]
[1738188976108,0.00929862,103540.0,103530.0,1.89332433]
[1738188976316,0.00029862,103540.0,103530.0,0.39346653]
[1738188976535,0.00329862,103540.0,103530.0,0.39346653]
[1738188976741,0.01229862,103540.0,103530.0,0.39346653]
[1738188978054,0.01229862,103540.0,103530.0,0.6160804]
[1738188978270,0.01229862,103540.0,103530.0,0.49070969]
[1738188978476,0.01229862,103540.0,103530.0,0.7760804]
[1738188979227,0.01229862,103540.0,103530.0,0.7990804]
[1738188979751,0.00044947,103540.0,103530.0,0.7990804]
[1738188979980,0.00044947,103540.0,103530.0,2.2990804]
[1738188984152,0.00044947,103540.0,103530.0,2.8416804]
[1738188986107,0.00044947,103540.0,103530.0,1.18330969]
[1738188986898,0.001,103540.0,103530.0,1.19130969]
[1738188987327,0.002,103540.0,103530.0,1.20030969]
[1738188987506,0.001,103540.0,103530.0,1.19130969]